Cogmind - Beta 9.1 @@@ ROGUE MODE // 2019.11.04 @ 00:12:59 Player: mako Result: Self-destructed Performance ------------- Evolutions (1) 500 Regions Visited (3) 600 Robots Destroyed (15) 75 Value Destroyed (177) 177 Prototype IDs (0) 0 Alien Tech Used (0) 0 Bonus (0) 0 TOTAL SCORE: 1352 Bonus ------- None Cogmind --------- Core Integrity 374/400 Matter 235/300 Energy 84/125 System Corruption 0% Temperature Cool (0) Location -9/Materials Parts ------- Power (1) Light Ion Engine Propulsion (4) Flight Unit Flight Unit Flight Unit Utility (2) Structural Scanner Weapon (2) Assault Rifle Makeshift Spear Inventory (4) Light Ion Engine Heat Sink Small Laser Peak State ------------ Power Light Ion Engine Propulsion Flight Unit Flight Unit Flight Unit Flight Unit Utility Heat Sink Structural Scanner Weapon Assault Rifle Makeshift Spear Inventory Light Ion Engine Small Laser [Rating: 12] Favorites ----------- Power Light Ion Engine Engine Light Ion Engine Propulsion Aluminum Leg Leg Aluminum Leg Hover Unit Hover Unit Flight Unit Flight Unit Utility Small Storage Unit Device Structural Scanner Storage Small Storage Unit Weapon Medium Laser Energy Gun Medium Laser Ballistic Gun Assault Rifle Piercing Weapon Makeshift Spear Build | -11 -10 -10 -9 ------- Run | Scr Mat Min Mat Slots Evolved 2 | . . . 2 Power . | . . . . Propulsion 2 | . . . 2 Utility . | . . . . Weapon . | . . . . Parts Attached 31 | 7 13 4 7 Power 3 | 1 1 . 1 Engine 3 | 1 1 . 1 Core . | . . . . Reactor . | . . . . Propulsion 17 | 2 9 2 4 Treads . | . . . . Leg 4 | 2 2 . . Wheel . | . . . . Hover 6 | . 6 . . Flight 7 | . 1 2 4 Utility 5 | 2 1 . 2 Device 2 | . . . 2 Storage 3 | 2 1 . . Processor . | . . . . Hackware . | . . . . Protection . | . . . . Artifact . | . . . . Weapon 6 | 2 2 2 . Energy Gun 3 | 2 1 . . Energy Cannon . | . . . . Ballistic Gun 2 | . 1 1 . Ballistic Cannon . | . . . . Launcher . | . . . . Special Weapon . | . . . . Impact Weapon . | . . . . Slashing Weapon . | . . . . Piercing Weapon 1 | . . 1 . Special Melee Weapon . | . . . . Unidentified Prototypes . | . . . . Parts Lost 8 | . 5 2 1 Power 1 | . 1 . . Propulsion 4 | . 1 2 1 Utility . | . . . . Weapon 3 | . 3 . . Highest Loss Streak 5 | . 5 2 1 Average Slot Usage (%) 80 | . 82 63 85 Engine 12 | . 12 14 11 Leg 11 | . 16 . . Hover 6 | . 7 9 . Flight 9 | . 1 12 40 Device 1 | . . . 12 Storage 15 | . 20 7 . Energy Gun 13 | . 19 . . Ballistic Gun 4 | . 3 4 11 Piercing Weapon 3 | . . 14 11 Naked Turns . | . . . . Heaviest Build 14 | 14 14 9 8 Greatest Support 20 | 20 20 12 16 Greatest Overweight (x) 2 | . 2 2 . Average Overweight (x) . | . . . . Largest Inventory Capacity 8 | 8 8 6 4 Average Capacity 6 | 6 6 5 4 Most Carried 8 | 6 8 6 3 Average Carried 5 | 4 6 5 2 Final Capacity 8 | 8 6 4 4 Final Carried 6 | 6 6 4 3 Class Distribution -------------------- 86% | Mutant 13% | Scavenger-Mutant Dominant Class ---------------- Mutant | -10/Materials Mutant | -10/Mines Scavenger-Mutant | -9/Materials Resources | -11 -10 -10 -9 ----------- Run | Scr Mat Min Mat Matter Collected 460 | 270 137 53 . Remotely . | . . . . Salvage Created 450 | 163 178 109 . Parts 26 | 8 13 5 . Haulers Intercepted 1 | . 1 . . Recyclers Shooed 1 | . 1 . . Parts Field Recycled . | . . . . Retrieved Matter . | . . . . Parts Self-Destructed . | . . . . Prevented . | . . . . Kills | -11 -10 -10 -9 ------- Run | Scr Mat Min Mat Combat Hostiles Destroyed 7 | . 5 2 . Melee 2 | . . 2 . Guns 5 | . 5 . . Classes Destroyed 7 | 3 4 . . Worker 2 | 2 . . . Tunneler 2 | 2 . . . Hauler 1 | . 1 . . Recycler 2 | 1 . 1 . Watcher 1 | . 1 . . Swarmer 5 | . 3 2 . Grunt 2 | . 2 . . Best Kill Streak 3 | 3 3 2 . Combat Bots Only 3 | . 3 1 . Max Kills in Single Turn 1 | 1 1 1 . Gunslinging . | . . . . Exploded . | . . . . Melee 1 | . . 1 . Uniques/NPCs Destroyed . | . . . . Combat | -11 -10 -10 -9 -------- Run | Scr Mat Min Mat Damage Taken 731 | . 528 79 124 Core 128 | . 102 . 26 Absorbed by Shields . | . . . . Core Remaining (%) 79 | 100 . 59 . Volleys Fired 43 | 11 32 . . Largest 2 | 2 2 . . Hottest 90 | 90 90 . . Shots Fired 67 | 22 45 . . Gun 67 | 22 45 . . Cannon . | . . . . Launcher . | . . . . Special . | . . . . Kinetic 15 | . 15 . . Thermal 52 | 22 30 . . Explosive . | . . . . Electromagnetic . | . . . . Robot Hit Streak 9 | 6 9 . . Robot Miss Streak 3 | 3 3 . . Penetration Max . | . . . . Secondary Targets . | . . . . Shots Hit Robots 46 | 14 28 4 . Core Hits 22 | 6 13 3 . Critical Hits . | . . . . Critical Kills . | . . . . Critical Parts Destroyed . | . . . . Melee Attacks 5 | . . 5 . Impact . | . . . . Slashing . | . . . . Piercing 5 | . . 5 . Sneak Attacks 2 | . . 2 . Combat Hostiles . | . . . . Follow-up Attacks . | . . . . Damage Inflicted 729 | 166 356 207 . Guns 510 | 166 344 . . Cannons . | . . . . Explosions . | . . . . Melee 207 | . . 207 . Ramming 12 | . 12 . . Kinetic 139 | . 139 . . Thermal 371 | 166 205 . . Explosive . | . . . . Electromagnetic . | . . . . Impact . | . . . . Slashing . | . . . . Piercing 207 | . . 207 . Highest Corruption . | . . . . Average Corruption . | . . . . Corruption Purged . | . . . . Overload Shots . | . . . . Overflow Damage 62 | . . 62 . Projectiles . | . . . . Explosions . | . . . . Melee 62 | . . 62 . Knockbacks . | . . . . Impact . | . . . . Kinetic . | . . . . Secondary . | . . . . Self-Inflicted Damage 3 | . 3 . . Shots . | . . . . Rammed 2 | . 2 . . Targets Rammed 3 | . 3 . . Kicked 1 | . 1 . . Crushed . | . . . . Highest Temperature 260 | 120 260 . 2 Average Temperature 80 | 51 97 . 2 Received Heat Transfer 252 | . 228 . 24 Effects 3 | . 3 . . Energy Bleed 1 | . 1 . . Interference 2 | . 2 . . Siege Activations . | . . . . Robots Corrupted . | . . . . Combat Hostiles . | . . . . Parts Fried . | . . . . Impact Corruptions . | . . . . Robots Melted . | . . . . Combat Hostiles . | . . . . Parts Melted 6 | 4 2 . . Heat Transferred 1039 | 446 593 . . Parts Sabotaged . | . . . . Parts Stolen . | . . . . Parts Stripped . | . . . . Power Chain Reactions . | . . . . Missiles Intercepted . | . . . . Alert | -11 -10 -10 -9 ------- Run | Scr Mat Min Mat Peak Influence 145 | 25 145 50 94 Average Influence 49 | 7 68 32 29 Maximum Alert Level . | . . . . Low Security (%) 100 | . . . . Level 1 . | . . . . Level 2 . | . . . . Level 3 . | . . . . Level 4 . | . . . . Level 5 . | . . . . High Security . | . . . . Max Security . | . . . . Squads Dispatched 1 | . . . 1 Investigation . | . . . . Extermination . | . . . . Reinforcement 1 | . . . 1 Assault . | . . . . Garrison . | . . . . Intercept . | . . . . Construction Impeded . | . . . . Haulers Reinforced . | . . . . Stealth | -11 -10 -10 -9 --------- Run | Scr Mat Min Mat Distress Signals . | . . . . Communications Jammed . | . . . . Distress Signals . | . . . . Times Spotted 27 | . 14 3 10 Peak Tracking Total 13 | . 6 3 13 Tactical Retreats 3 | . 2 1 . Traps | -11 -10 -10 -9 ------- Run | Scr Mat Min Mat Traps Triggered . | . . . . Indirectly . | . . . . Trap Hack Attempts . | . . . . Triggered . | . . . . Disarmed . | . . . . Reprogrammed . | . . . . Reused . | . . . . Traps Extracted . | . . . . Installed . | . . . . Triggered . | . . . . Machines | -11 -10 -10 -9 ---------- Run | Scr Mat Min Mat Machines Disabled . | . . . . Max in Single Turn . | . . . . Machines Sabotaged . | . . . . Garrisons Compromised . | . . . . Overloaded Fab Kills . | . . . . Fab Network Shutdowns . | . . . . Hacking | -11 -10 -10 -9 --------- Run | Scr Mat Min Mat Machines Accessed 3 | . 3 . . Terminals 2 | . 2 . . Fabricators . | . . . . Repair Stations . | . . . . Recycling Units 1 | . 1 . . Scanalyzers . | . . . . Garrison Access . | . . . . Total Hacks 3 | . 3 . . Successful 2 | . 2 . . Failed 1 | . 1 . . Catastrophic 1 | . 1 . . Database Lockouts . | . . . . Manual . | . . . . Terminals 2 | . 2 . . Fabricators . | . . . . Repair Stations . | . . . . Recycling Units 1 | . 1 . . Scanalyzers . | . . . . Garrison Access . | . . . . Terminal Hacks 1 | . 1 . . Alert Level 1 | . 1 . . Fabricator Hacks . | . . . . Repair Station Hacks . | . . . . Recycling Unit Hacks 1 | . 1 . . Report Inventory 1 | . 1 . . Scanalyzer . | . . . . Garrison Access Hacks . | . . . . Unauthorized Hacks . | . . . . Terminals . | . . . . Fabricators . | . . . . Repair Stations . | . . . . Recycling Units . | . . . . Scanalyzers . | . . . . Garrison Access . | . . . . Data Cores Recovered . | . . . . Used . | . . . . Hacking Detections 2 | . 2 . . Full Trace Events . | . . . . Feedback Events . | . . . . Feedback Blocked . | . . . . Robot Schematics Acquired . | . . . . Robots Built . | . . . . Matter . | . . . . Time . | . . . . Total Robot Build Rating . | . . . . Part Schematics Acquired . | . . . . Parts Built . | . . . . Matter . | . . . . Time . | . . . . Total Part Build Rating . | . . . . Parts Repaired . | . . . . Time . | . . . . Parts Recycled . | . . . . Recycled Matter . | . . . . Retrieved Matter . | . . . . Retrieved Components . | . . . . Parts Scanalyzed . | . . . . Part Schematics Acquired . | . . . . Parts Damaged . | . . . . Bothacking | -11 -10 -10 -9 ------------ Run | Scr Mat Min Mat Used RIF Installer . | . . . . Robots Hacked . | . . . . Non-combat . | . . . . Combat . | . . . . Robot Hacks Applied . | . . . . Relay Couplers Released . | . . . . Robots Rewired . | . . . . Allies Hacked . | . . . . Hacks Repelled . | . . . . Allies | -11 -10 -10 -9 -------- Run | Scr Mat Min Mat Total Allies . | . . . . Largest Group . | . . . . Highest-Rated Group . | . . . . Highest-Rated Ally . | . . . . Total Orders . | . . . . Ally Attacks . | . . . . Total Damage . | . . . . Kills . | . . . . Allies Corrupted . | . . . . Allies Melted . | . . . . Intel | -11 -10 -10 -9 ------- Run | Scr Mat Min Mat Robot Analysis Total . | . . . . Derelict Logs Recovered . | . . . . Drone Launches . | . . . . Drone Recoveries . | . . . . Exploration | -11 -10 -10 -9 ------------- Run | Scr Mat Min Mat Turns Passed 707 | 115 408 89 95 Spaces Moved 608 | 56 287 110 155 Core 4 | 2 . 2 . Treads . | . . . . Legs 201 | 54 147 . . Wheels . | . . . . Hover 126 | . 88 38 . Flight 277 | . 52 70 155 Fastest Speed 31 | 50 40 37 31 Average Speed 72 | 117 92 52 35 Slowest Speed 180 | 120 180 150 37 Overloaded Moves . | . . . . Propulsion Burnouts . | . . . . Robots Hopped 1 | . 1 . . Cave-ins Triggered . | . . . . Exploration Rate (%) 24 | 5 54 18 21 Regions Visited 3 Branch Regions 1 Pre-discovered Areas . | . . . . Known Exits Taken . | . . . . Unknown Exits Taken 3 | 1 1 1 . Scrap Searched . | . . . . Spaces Dug . | . . . . Terrain Destroyed . | . . . . Melee . | . . . . Projectile . | . . . . AOE . | . . . . Actions | -11 -10 -10 -9 --------- Run | Scr Mat Min Mat Total 795 | 79 385 136 195 Wait 71 | . 29 13 29 Move 603 | 55 284 109 155 Hop 1 | . 1 . . Pick Up 17 | 6 8 2 1 Fast Attach 18 | 7 8 2 1 Attach 10 | . 3 2 5 Detach 4 | . 1 . 3 Swap 3 | . 2 . 1 Drop 17 | . 14 3 . Fire 43 | 11 32 . . Melee 5 | . . 5 . Ram . | . . . . Kick 3 | . 3 . . Crush . | . . . . Escape Stasis . | . . . . Rewire . | . . . . Trap . | . . . . Miscellaneous . | . . . . Route ------- -11/Scrapyard -10/Materials -10/Mines -9/Materials History --------- Turn | Location | Event 19 | -11/Scrapyard | Discovered new exit (range 16) 116 | -11/Scrapyard | Entered Materials 312 | -10/Materials | Build established: Mutant 454 | -10/Materials | Lost 5 parts (1p1n3w) 489 | -10/Materials | Discovered new exit (range 8) 524 | -10/Materials | Entered Mines 524 | -10/Mines | A weapon hastily lodged in a ceiling crevice suddenly fell to the ground 537 | -10/Mines | Discovered new exit (range 9) 613 | -10/Mines | Entered Materials 613 | -9/Materials | Evolved 2 slots: Propulsion x2 708 | -9/Materials | Self-destructed Last Messages --------------- 00584_ Dropped Mining Laser. 00586_ Acquired Flight Unit. 00587_ Acquired 30 matter. 00587_ Acquired Flight Unit. 00598_ T-07 Excavator is excavating. PARAMETERS=PROPULSION_2 LOCATION=UNKNOWN GOAL=ESCAPE 00641_ K-01 Serf collects debris. 00652_ Acquired Sml. Laser. 00659_ Acquired Structural Scanner. 00698_ O-16 Technician: "IFF HANDSHAKE FAILED. SECURING TERMINAL." 00699_ K-01 Serf collects debris. 00699_ Flight Unit destroyed. 00702_ O-16 Technician uses terminal to summon reinforcements. 00702_ ALERT: Hostiles spotted, dispatching reinforcements to Terminal M006. 00702_ O-16 Technician locks terminal. 00707_ S-10 Pest destroyed. [Achievement: 10k Club] Map ----- +----------------------------------------------------+ | | | | | | | | | | | | | | | | | | | | | | | | | | | | | | | | | | | | | ???????????????????????##########????????????????? | | ???????????????????????# ????????????????? | | ???????????????????????# """ """ #???????????????? | | ???????????????????????# """ """ #???????????????? | | ???????????????????###?# """ """ #########???????? | | ???????????????????#[[ # ## T #???????? | | ???????????????????#[[ ###+######## #???????? | | ???????????????????#// @ #?????# """#???????? | | ???????????????????#// s ####### """#???????? | | ???????????????????#== Y + """#???????? | | ???????????????????#== ####### #???????? | | ???????????????????######s ### ##+#####???????? | | ????????????????????????#%* #?????????? | | ????????????????????????#= #?????????? | | ???????????????#####????# ##+###?????????? | | ???????????????# #####g # ??????????? | | ??????????????## # """ ????????? | | ??????? # """ #???????? | | ???????????##### # """ k # """ #???????? | | ???????###########??# """ # #???????? | | ???????# ! #### """ # [ ! #???????? | | ???????# + """ ########???????? | | ???????# """"""" ### #??????????????? | | ???????????""""????# #??????????????? | | ????????????"??????# """ ##+###??????????????? | | ???????????????????# """ #???????????????????? | | ???????????????????# """ #???????????????????? | | ???????????????????# """ #???????????????????? | | ???????????######### #???????????????????? | | ???????????# # #???????????????????? | | ???????????# + #???????????????????? | | ???????????# # #???????????????????? | +----------------------------------------------------+ Best States ------------- Heat Dissipation 38 Energy Generation 10 Energy Capacity 125 Matter Stores 300 Matter Capacity 300 Sight Range 16 Terrain Scan Density 10 Evasion (%) 63 Item Schematics ----------------- None Robot Schematics ------------------ None Fabricated ------------ Nothing Alien Tech Used ----------------- None Achievements -------------- 10k Club Challenges ------------ None Game ------ Seed BeamCentriumGuard Manual? 0 Play Time 00:15:43 Cumulative 12.1 hours Start 2019.11.03 @ 23:59:43 End 2019.11.04 @ 00:12:59 Sessions 1 Manual Loads 0 Difficulty Rogue Special Mode None Game No. 27 Rogue 27 Adventurer 0 Explorer 0 Win Type - Total 0 Types 0/0/0/0/0/0/0 Lore% 15 Gallery% 18 Achievement% 17 Wizard Run 0 Options --------- ASCII 0 Keyboard 0 Movement Numpad Keybinds 0 Fullscreen 1 Font 18/SmallcapsGlow Map View 76x50 Tactical HUD 1 Map Filters NONE Filters NONE Steam 1 RUN: f3a8c2dd-ae1f-4352-9d3b-6886f6b07be6